Workbook

Sheet Control
B2: MSFT
B3: Implied Volatility (Low) | C3: 0.424
B4: Implied Volatility (High) | C4: 0.424
B6: Risk-free Rate | C6: 0.025
B7: Expected Dividend Yield | C7: 0
B8: Net Drift | C8: =C6-C7 -> 0.025
B10: Best Case | C10: 50
B11: Worst Case | C11: 35

Sheet Stock Price Data
A1: MSFT | B1: Adjusted_close
A2: 2017-06-09 | B2: 68.9766
A3: 2017-06-12 | B3: 68.4469
A4: 2017-06-13 | B4: 69.3003
A5: 2017-06-14 | B5: 68.9275
A6: 2017-06-15 | B6: 68.5646
A7: 2017-06-16 | B7: 68.6627
A8: 2017-06-19 | B8: 69.5161
A9: 2017-06-20 | B9: 68.5744
A10: 2017-06-21 | B10: 68.9275
A11: 2017-06-22 | B11: 68.9177
A12: 2017-06-23 | B12: 69.8496
A13: 2017-06-26 | B13: 69.1826
A14: 2017-06-27 | B14: 67.8878
A15: 2017-06-28 | B15: 68.4665
A16: 2017-06-29 | B16: 67.1815
A17: 2017-06-30 | B17: 67.6131
A18: 2017-07-03 | B18: 66.8677
A19: 2017-07-05 | B19: 67.7603
A20: 2017-07-06 | B20: 67.26
A21: 2017-07-07 | B21: 68.133
A22: 2017-07-10 | B22: 68.6431
A23: 2017-07-11 | B23: 68.6529
A24: 2017-07-12 | B24: 69.7907
A25: 2017-07-13 | B25: 70.3989
A26: 2017-07-14 | B26: 71.3896
A27: 2017-07-17 | B27: 71.9487
A28: 2017-07-18 | B28: 71.8996
A29: 2017-07-19 | B29: 72.4489
A30: 2017-07-20 | B30: 72.8021
A31: 2017-07-21 | B31: 72.3803
A32: 2017-07-24 | B32: 72.1939
A33: 2017-07-25 | B33: 72.7726
A34: 2017-07-26 | B34: 72.6353
A35: 2017-07-27 | B35: 71.7623
A36: 2017-07-28 | B36: 71.6446
A37: 2017-07-31 | B37: 71.3111
A38: 2017-08-01 | B38: 71.1934
A39: 2017-08-02 | B39: 70.8795
A40: 2017-08-03 | B40: 70.7716
A41: 2017-08-04 | B41: 71.2915
A42: 2017-08-07 | B42: 71.0168
A43: 2017-08-08 | B43: 71.3994
A44: 2017-08-09 | B44: 71.0855
A45: 2017-08-10 | B45: 70.0458
A46: 2017-08-11 | B46: 71.1149
A47: 2017-08-14 | B47: 72.1841
A48: 2017-08-15 | B48: 72.2037
A49: 2017-08-16 | B49: 72.6278
A50: 2017-08-17 | B50: 71.3951
A51: 2017-08-18 | B51: 71.4839
A52: 2017-08-21 | B52: 71.1486
A53: 2017-08-22 | B53: 72.1446
A54: 2017-08-23 | B54: 71.7107
A55: 2017-08-24 | B55: 71.6811
A56: 2017-08-25 | B56: 71.8093
A57: 2017-08-28 | B57: 71.8191
A58: 2017-08-29 | B58: 72.0361
A59: 2017-08-30 | B59: 72.9828
A60: 2017-08-31 | B60: 73.7322
A61: 2017-09-01 | B61: 72.9137
A62: 2017-09-05 | B62: 72.5883
A63: 2017-09-06 | B63: 72.3812
A64: 2017-09-07 | B64: 73.3082
A65: 2017-09-08 | B65: 72.9532
A66: 2017-09-11 | B66: 73.7224
A67: 2017-09-12 | B67: 73.6435
A68: 2017-09-13 | B68: 74.1661
A69: 2017-09-14 | B69: 73.7322
A70: 2017-09-15 | B70: 74.2647
A71: 2017-09-18 | B71: 74.1168
A72: 2017-09-19 | B72: 74.3929
A73: 2017-09-20 | B73: 73.8999
A74: 2017-09-21 | B74: 73.18
A75: 2017-09-22 | B75: 73.3772
A76: 2017-09-25 | B76: 72.2432
A77: 2017-09-26 | B77: 72.2432
A78: 2017-09-27 | B78: 72.825
A79: 2017-09-28 | B79: 72.8447
A80: 2017-09-29 | B80: 73.4561
A81: 2017-10-02 | B81: 73.5744
A82: 2017-10-03 | B82: 73.2293
A83: 2017-10-04 | B83: 73.6533
A84: 2017-10-05 | B84: 74.9156
A85: 2017-10-06 | B85: 74.9451
A86: 2017-10-09 | B86: 75.2311
A87: 2017-10-10 | B87: 75.2311
A88: 2017-10-11 | B88: 75.3593
A89: 2017-10-12 | B89: 76.0496
A90: 2017-10-13 | B90: 76.4145
A91: 2017-10-16 | B91: 76.5722
A92: 2017-10-17 | B92: 76.5131
A93: 2017-10-18 | B93: 76.5328
A94: 2017-10-19 | B94: 76.8286
A95: 2017-10-20 | B95: 77.7161
A96: 2017-10-23 | B96: 77.7359
A97: 2017-10-24 | B97: 77.7654
A98: 2017-10-25 | B98: 77.5386
A99: 2017-10-26 | B99: 77.6668
A100: 2017-10-27 | B100: 82.6467
A101: 2017-10-30 | B101: 82.7256
A102: 2017-10-31 | B102: 82.0255
A103: 2017-11-01 | B103: 82.0255
A104: 2017-11-02 | B104: 82.8834
A105: 2017-11-03 | B105: 82.9722
A106: 2017-11-06 | B106: 83.2976
A107: 2017-11-07 | B107: 83.1004
A108: 2017-11-08 | B108: 83.3863
A109: 2017-11-09 | B109: 82.9229
A110: 2017-11-10 | B110: 82.7059
A111: 2017-11-13 | B111: 82.7651
A112: 2017-11-14 | B112: 82.8834
A113: 2017-11-15 | B113: 82.2424
A114: 2017-11-16 | B114: 82.4605
A115: 2017-11-17 | B115: 81.6676
A116: 2017-11-20 | B116: 81.7964
A117: 2017-11-21 | B117: 82.9759
A118: 2017-11-22 | B118: 82.3713
A119: 2017-11-24 | B119: 82.5199
A120: 2017-11-27 | B120: 83.1245
A121: 2017-11-28 | B121: 84.1255
A122: 2017-11-29 | B122: 82.5992
A123: 2017-11-30 | B123: 83.4219
A124: 2017-12-01 | B124: 83.5111
A125: 2017-12-04 | B125: 80.3593
A126: 2017-12-05 | B126: 80.8648
A127: 2017-12-06 | B127: 82.0442
A128: 2017-12-07 | B128: 81.7568
A129: 2017-12-08 | B129: 83.4119
A130: 2017-12-11 | B130: 84.4724
A131: 2017-12-12 | B131: 84.8193
A132: 2017-12-13 | B132: 84.5914
A133: 2017-12-14 | B133: 83.9372
A134: 2017-12-15 | B134: 86.078
A135: 2017-12-18 | B135: 85.6122
A136: 2017-12-19 | B136: 85.0671
A137: 2017-12-20 | B137: 84.7599
A138: 2017-12-21 | B138: 84.74
A139: 2017-12-22 | B139: 84.7499
A140: 2017-12-26 | B140: 84.6409
A141: 2017-12-27 | B141: 84.9482
A142: 2017-12-28 | B142: 84.9581
A143: 2017-12-29 | B143: 84.7797
A144: 2018-01-02 | B144: 85.186
A145: 2018-01-03 | B145: 85.5825
A146: 2018-01-04 | B146: 86.3357
A147: 2018-01-05 | B147: 87.4061
A148: 2018-01-08 | B148: 87.4953
A149: 2018-01-09 | B149: 87.4359
A150: 2018-01-10 | B150: 87.0394
A151: 2018-01-11 | B151: 87.2971
A152: 2018-01-12 | B152: 88.8036
A153: 2018-01-16 | B153: 87.5647
A154: 2018-01-17 | B154: 89.3388
A155: 2018-01-18 | B155: 89.2991
A156: 2018-01-19 | B156: 89.2
A157: 2018-01-22 | B157: 90.7957
A158: 2018-01-23 | B158: 91.0831
A159: 2018-01-24 | B159: 91.0039
A160: 2018-01-25 | B160: 91.5093
A161: 2018-01-26 | B161: 93.2239
A162: 2018-01-29 | B162: 93.0852
A163: 2018-01-30 | B163: 91.9157
A164: 2018-01-31 | B164: 94.1655
A165: 2018-02-01 | B165: 93.4222
A166: 2018-02-02 | B166: 90.9642
A167: 2018-02-05 | B167: 87.2178
A168: 2018-02-06 | B168: 90.5182
A169: 2018-02-07 | B169: 88.8135
A170: 2018-02-08 | B170: 84.2544
A171: 2018-02-09 | B171: 87.3962
A172: 2018-02-12 | B172: 88.3378
A173: 2018-02-13 | B173: 89.0315
A174: 2018-02-14 | B174: 90.4191
A175: 2018-02-15 | B175: 92.2611
A176: 2018-02-16 | B176: 91.604
A177: 2018-02-20 | B177: 92.3209
A178: 2018-02-21 | B178: 91.0962
A179: 2018-02-22 | B179: 91.3351
A180: 2018-02-23 | B180: 93.6551
A181: 2018-02-26 | B181: 95.0093
A182: 2018-02-27 | B182: 93.7945
A183: 2018-02-28 | B183: 93.3664
A184: 2018-03-01 | B184: 92.4503
A185: 2018-03-02 | B185: 92.6495
A186: 2018-03-05 | B186: 93.2369
A187: 2018-03-06 | B187: 92.9183
A188: 2018-03-07 | B188: 93.456
A189: 2018-03-08 | B189: 94.0235
A190: 2018-03-09 | B190: 96.1244
A191: 2018-03-12 | B191: 96.3534
A192: 2018-03-13 | B192: 94.0036
A193: 2018-03-14 | B193: 93.446
A194: 2018-03-15 | B194: 93.7746
A195: 2018-03-16 | B195: 94.1928
A196: 2018-03-19 | B196: 92.4901
A197: 2018-03-20 | B197: 92.7291
A198: 2018-03-21 | B198: 92.0819
A199: 2018-03-22 | B199: 89.4035
A200: 2018-03-23 | B200: 86.8047
... 52 more rows

Sheet Calculations
A1: Day Count | B1: Day % Yr. | C1: Date | D1: Historical Price | E1: Log of Price | F1: Mu | G1: Std. Deviation (Low) | H1: Std. Deviation (High) | I1: B/S Lower Bound (Low IV) | J1: Risk Free Drift | K1: B/S Upper Bound (Low IV) | L1: Consider Buying | M1: Fair Value Estimate | N1: Consider Selling | O1: B/S Lower Bound (High IV) | P1: B/S Upper Bound (High IV) | Q1: Low Estimate | R1: High Estimate
C2: 2009-07-09 | D2: 29.32117225 | I2: 29.32117225 | K2: 29.32117225
C3: 2009-07-10 | D3: 29.02212919 | I3: 29.02212919 | K3: 29.02212919
C4: 2009-07-13 | D4: 29.85944976 | I4: 29.85944976 | K4: 29.85944976
C5: 2009-07-14 | D5: 29.90430622 | I5: 29.90430622 | K5: 29.90430622
C6: 2009-07-15 | D6: 32.14712919 | I6: 32.14712919 | K6: 32.14712919
C7: 2009-07-16 | D7: 32.40131579 | I7: 32.40131579 | K7: 32.40131579
A8: =C8 ->  | C8: ='Stock Price Data'!#REF! ->  | I8: =D8 -> 0 | J8: =D8 -> 0 | K8: =D8 -> 0 | O8: =D8 -> 0 | P8: =D8 -> 0
A9: =C9 -> 2017-06-09 | C9: ='Stock Price Data'!A2 -> 2017-06-09 | D9: ='Stock Price Data'!B2 -> 68.9766 | I9: =D9 -> 68.9766 | J9: =D9 -> 68.9766 | K9: =D9 -> 68.9766 | O9: =D9 -> 68.9766 | P9: =D9 -> 68.9766
A10: 2017-06-12 | C10: ='Stock Price Data'!A3 -> 2017-06-12 | D10: ='Stock Price Data'!B3 -> 68.4469 | I10: 68.4469 | J10: 68.4469 | K10: 68.4469 | O10: 68.4469 | P10: 68.4469
A11: 2017-06-13 | C11: ='Stock Price Data'!A4 -> 2017-06-13 | D11: ='Stock Price Data'!B4 -> 69.3003 | I11: 69.3003 | J11: 69.3003 | K11: 69.3003 | O11: 69.3003 | P11: 69.3003
A12: 2017-06-14 | C12: ='Stock Price Data'!A5 -> 2017-06-14 | D12: ='Stock Price Data'!B5 -> 68.9275 | I12: 68.9275 | J12: 68.9275 | K12: 68.9275 | O12: 68.9275 | P12: 68.9275
A13: 2017-06-15 | C13: ='Stock Price Data'!A6 -> 2017-06-15 | D13: ='Stock Price Data'!B6 -> 68.5646 | I13: 68.5646 | J13: 68.5646 | K13: 68.5646 | O13: 68.5646 | P13: 68.5646
A14: 2017-06-16 | C14: ='Stock Price Data'!A7 -> 2017-06-16 | D14: ='Stock Price Data'!B7 -> 68.6627 | I14: 68.6627 | J14: 68.6627 | K14: 68.6627 | O14: 68.6627 | P14: 68.6627
A15: 2017-06-19 | C15: ='Stock Price Data'!A8 -> 2017-06-19 | D15: ='Stock Price Data'!B8 -> 69.5161 | I15: 69.5161 | J15: 69.5161 | K15: 69.5161 | O15: 69.5161 | P15: 69.5161
A16: 2017-06-20 | C16: ='Stock Price Data'!A9 -> 2017-06-20 | D16: ='Stock Price Data'!B9 -> 68.5744 | I16: 68.5744 | J16: 68.5744 | K16: 68.5744 | O16: 68.5744 | P16: 68.5744
A17: 2017-06-21 | C17: ='Stock Price Data'!A10 -> 2017-06-21 | D17: ='Stock Price Data'!B10 -> 68.9275 | I17: 68.9275 | J17: 68.9275 | K17: 68.9275 | O17: 68.9275 | P17: 68.9275
A18: 2017-06-22 | C18: ='Stock Price Data'!A11 -> 2017-06-22 | D18: ='Stock Price Data'!B11 -> 68.9177 | I18: 68.9177 | J18: 68.9177 | K18: 68.9177 | O18: 68.9177 | P18: 68.9177
A19: 2017-06-23 | C19: ='Stock Price Data'!A12 -> 2017-06-23 | D19: ='Stock Price Data'!B12 -> 69.8496 | I19: 69.8496 | J19: 69.8496 | K19: 69.8496 | O19: 69.8496 | P19: 69.8496
A20: 2017-06-26 | C20: ='Stock Price Data'!A13 -> 2017-06-26 | D20: ='Stock Price Data'!B13 -> 69.1826 | I20: 69.1826 | J20: 69.1826 | K20: 69.1826 | O20: 69.1826 | P20: 69.1826
A21: 2017-06-27 | C21: ='Stock Price Data'!A14 -> 2017-06-27 | D21: ='Stock Price Data'!B14 -> 67.8878 | I21: 67.8878 | J21: 67.8878 | K21: 67.8878 | O21: 67.8878 | P21: 67.8878
A22: 2017-06-28 | C22: ='Stock Price Data'!A15 -> 2017-06-28 | D22: ='Stock Price Data'!B15 -> 68.4665 | I22: 68.4665 | J22: 68.4665 | K22: 68.4665 | O22: 68.4665 | P22: 68.4665
A23: 2017-06-29 | C23: ='Stock Price Data'!A16 -> 2017-06-29 | D23: ='Stock Price Data'!B16 -> 67.1815 | I23: 67.1815 | J23: 67.1815 | K23: 67.1815 | O23: 67.1815 | P23: 67.1815
A24: 2017-06-30 | C24: ='Stock Price Data'!A17 -> 2017-06-30 | D24: ='Stock Price Data'!B17 -> 67.6131 | I24: 67.6131 | J24: 67.6131 | K24: 67.6131 | O24: 67.6131 | P24: 67.6131
A25: 2017-07-03 | C25: ='Stock Price Data'!A18 -> 2017-07-03 | D25: ='Stock Price Data'!B18 -> 66.8677 | I25: 66.8677 | J25: 66.8677 | K25: 66.8677 | O25: 66.8677 | P25: 66.8677
A26: 2017-07-05 | C26: ='Stock Price Data'!A19 -> 2017-07-05 | D26: ='Stock Price Data'!B19 -> 67.7603 | I26: 67.7603 | J26: 67.7603 | K26: 67.7603 | O26: 67.7603 | P26: 67.7603
A27: 2017-07-06 | C27: ='Stock Price Data'!A20 -> 2017-07-06 | D27: ='Stock Price Data'!B20 -> 67.26 | I27: 67.26 | J27: 67.26 | K27: 67.26 | O27: 67.26 | P27: 67.26
A28: 2017-07-07 | C28: ='Stock Price Data'!A21 -> 2017-07-07 | D28: ='Stock Price Data'!B21 -> 68.133 | I28: 68.133 | J28: 68.133 | K28: 68.133 | O28: 68.133 | P28: 68.133
A29: 2017-07-10 | C29: ='Stock Price Data'!A22 -> 2017-07-10 | D29: ='Stock Price Data'!B22 -> 68.6431 | I29: 68.6431 | J29: 68.6431 | K29: 68.6431 | O29: 68.6431 | P29: 68.6431
A30: 2017-07-11 | C30: ='Stock Price Data'!A23 -> 2017-07-11 | D30: ='Stock Price Data'!B23 -> 68.6529 | I30: 68.6529 | J30: 68.6529 | K30: 68.6529 | O30: 68.6529 | P30: 68.6529
A31: 2017-07-12 | C31: ='Stock Price Data'!A24 -> 2017-07-12 | D31: ='Stock Price Data'!B24 -> 69.7907 | I31: 69.7907 | J31: 69.7907 | K31: 69.7907 | O31: 69.7907 | P31: 69.7907
A32: 2017-07-13 | C32: ='Stock Price Data'!A25 -> 2017-07-13 | D32: ='Stock Price Data'!B25 -> 70.3989 | I32: 70.3989 | J32: 70.3989 | K32: 70.3989 | O32: 70.3989 | P32: 70.3989
A33: 2017-07-14 | C33: ='Stock Price Data'!A26 -> 2017-07-14 | D33: ='Stock Price Data'!B26 -> 71.3896 | I33: 71.3896 | J33: 71.3896 | K33: 71.3896 | O33: 71.3896 | P33: 71.3896
A34: 2017-07-17 | C34: ='Stock Price Data'!A27 -> 2017-07-17 | D34: ='Stock Price Data'!B27 -> 71.9487 | I34: 71.9487 | J34: 71.9487 | K34: 71.9487 | O34: 71.9487 | P34: 71.9487
A35: 2017-07-18 | C35: ='Stock Price Data'!A28 -> 2017-07-18 | D35: ='Stock Price Data'!B28 -> 71.8996 | I35: 71.8996 | J35: 71.8996 | K35: 71.8996 | O35: 71.8996 | P35: 71.8996
A36: 2017-07-19 | C36: ='Stock Price Data'!A29 -> 2017-07-19 | D36: ='Stock Price Data'!B29 -> 72.4489 | I36: 72.4489 | J36: 72.4489 | K36: 72.4489 | O36: 72.4489 | P36: 72.4489
A37: 2017-07-20 | C37: ='Stock Price Data'!A30 -> 2017-07-20 | D37: ='Stock Price Data'!B30 -> 72.8021 | I37: 72.8021 | J37: 72.8021 | K37: 72.8021 | O37: 72.8021 | P37: 72.8021
A38: 2017-07-21 | C38: ='Stock Price Data'!A31 -> 2017-07-21 | D38: ='Stock Price Data'!B31 -> 72.3803 | I38: 72.3803 | J38: 72.3803 | K38: 72.3803 | O38: 72.3803 | P38: 72.3803
A39: 2017-07-24 | C39: ='Stock Price Data'!A32 -> 2017-07-24 | D39: ='Stock Price Data'!B32 -> 72.1939 | I39: 72.1939 | J39: 72.1939 | K39: 72.1939 | O39: 72.1939 | P39: 72.1939
A40: 2017-07-25 | C40: ='Stock Price Data'!A33 -> 2017-07-25 | D40: ='Stock Price Data'!B33 -> 72.7726 | I40: 72.7726 | J40: 72.7726 | K40: 72.7726 | O40: 72.7726 | P40: 72.7726
A41: 2017-07-26 | C41: ='Stock Price Data'!A34 -> 2017-07-26 | D41: ='Stock Price Data'!B34 -> 72.6353 | I41: 72.6353 | J41: 72.6353 | K41: 72.6353 | O41: 72.6353 | P41: 72.6353
A42: 2017-07-27 | C42: ='Stock Price Data'!A35 -> 2017-07-27 | D42: ='Stock Price Data'!B35 -> 71.7623 | I42: 71.7623 | J42: 71.7623 | K42: 71.7623 | O42: 71.7623 | P42: 71.7623
A43: 2017-07-28 | C43: ='Stock Price Data'!A36 -> 2017-07-28 | D43: ='Stock Price Data'!B36 -> 71.6446 | I43: 71.6446 | J43: 71.6446 | K43: 71.6446 | O43: 71.6446 | P43: 71.6446
A44: 2017-07-31 | C44: ='Stock Price Data'!A37 -> 2017-07-31 | D44: ='Stock Price Data'!B37 -> 71.3111 | I44: 71.3111 | J44: 71.3111 | K44: 71.3111 | O44: 71.3111 | P44: 71.3111
A45: 2017-08-01 | C45: ='Stock Price Data'!A38 -> 2017-08-01 | D45: ='Stock Price Data'!B38 -> 71.1934 | I45: 71.1934 | J45: 71.1934 | K45: 71.1934 | O45: 71.1934 | P45: 71.1934
A46: 2017-08-02 | C46: ='Stock Price Data'!A39 -> 2017-08-02 | D46: ='Stock Price Data'!B39 -> 70.8795 | I46: 70.8795 | J46: 70.8795 | K46: 70.8795 | O46: 70.8795 | P46: 70.8795
A47: 2017-08-03 | C47: ='Stock Price Data'!A40 -> 2017-08-03 | D47: ='Stock Price Data'!B40 -> 70.7716 | I47: 70.7716 | J47: 70.7716 | K47: 70.7716 | O47: 70.7716 | P47: 70.7716
A48: 2017-08-04 | C48: ='Stock Price Data'!A41 -> 2017-08-04 | D48: ='Stock Price Data'!B41 -> 71.2915 | I48: 71.2915 | J48: 71.2915 | K48: 71.2915 | O48: 71.2915 | P48: 71.2915
A49: 2017-08-07 | C49: ='Stock Price Data'!A42 -> 2017-08-07 | D49: ='Stock Price Data'!B42 -> 71.0168 | I49: 71.0168 | J49: 71.0168 | K49: 71.0168 | O49: 71.0168 | P49: 71.0168
A50: 2017-08-08 | C50: ='Stock Price Data'!A43 -> 2017-08-08 | D50: ='Stock Price Data'!B43 -> 71.3994 | I50: 71.3994 | J50: 71.3994 | K50: 71.3994 | O50: 71.3994 | P50: 71.3994
A51: 2017-08-09 | C51: ='Stock Price Data'!A44 -> 2017-08-09 | D51: ='Stock Price Data'!B44 -> 71.0855 | I51: 71.0855 | J51: 71.0855 | K51: 71.0855 | O51: 71.0855 | P51: 71.0855
A52: 2017-08-10 | C52: ='Stock Price Data'!A45 -> 2017-08-10 | D52: ='Stock Price Data'!B45 -> 70.0458 | I52: 70.0458 | J52: 70.0458 | K52: 70.0458 | O52: 70.0458 | P52: 70.0458
A53: 2017-08-11 | C53: ='Stock Price Data'!A46 -> 2017-08-11 | D53: ='Stock Price Data'!B46 -> 71.1149 | I53: 71.1149 | J53: 71.1149 | K53: 71.1149 | O53: 71.1149 | P53: 71.1149
A54: 2017-08-14 | C54: ='Stock Price Data'!A47 -> 2017-08-14 | D54: ='Stock Price Data'!B47 -> 72.1841 | I54: 72.1841 | J54: 72.1841 | K54: 72.1841 | O54: 72.1841 | P54: 72.1841
A55: 2017-08-15 | C55: ='Stock Price Data'!A48 -> 2017-08-15 | D55: ='Stock Price Data'!B48 -> 72.2037 | I55: 72.2037 | J55: 72.2037 | K55: 72.2037 | O55: 72.2037 | P55: 72.2037
A56: 2017-08-16 | C56: ='Stock Price Data'!A49 -> 2017-08-16 | D56: ='Stock Price Data'!B49 -> 72.6278 | I56: 72.6278 | J56: 72.6278 | K56: 72.6278 | O56: 72.6278 | P56: 72.6278
A57: 2017-08-17 | C57: ='Stock Price Data'!A50 -> 2017-08-17 | D57: ='Stock Price Data'!B50 -> 71.3951 | I57: 71.3951 | J57: 71.3951 | K57: 71.3951 | O57: 71.3951 | P57: 71.3951
A58: 2017-08-18 | C58: ='Stock Price Data'!A51 -> 2017-08-18 | D58: ='Stock Price Data'!B51 -> 71.4839 | I58: 71.4839 | J58: 71.4839 | K58: 71.4839 | O58: 71.4839 | P58: 71.4839
A59: 2017-08-21 | C59: ='Stock Price Data'!A52 -> 2017-08-21 | D59: ='Stock Price Data'!B52 -> 71.1486 | I59: 71.1486 | J59: 71.1486 | K59: 71.1486 | O59: 71.1486 | P59: 71.1486
A60: 2017-08-22 | C60: ='Stock Price Data'!A53 -> 2017-08-22 | D60: ='Stock Price Data'!B53 -> 72.1446 | I60: 72.1446 | J60: 72.1446 | K60: 72.1446 | O60: 72.1446 | P60: 72.1446
A61: 2017-08-23 | C61: ='Stock Price Data'!A54 -> 2017-08-23 | D61: ='Stock Price Data'!B54 -> 71.7107 | I61: 71.7107 | J61: 71.7107 | K61: 71.7107 | O61: 71.7107 | P61: 71.7107
A62: 2017-08-24 | C62: ='Stock Price Data'!A55 -> 2017-08-24 | D62: ='Stock Price Data'!B55 -> 71.6811 | I62: 71.6811 | J62: 71.6811 | K62: 71.6811 | O62: 71.6811 | P62: 71.6811
A63: 2017-08-25 | C63: ='Stock Price Data'!A56 -> 2017-08-25 | D63: ='Stock Price Data'!B56 -> 71.8093 | I63: 71.8093 | J63: 71.8093 | K63: 71.8093 | O63: 71.8093 | P63: 71.8093
A64: 2017-08-28 | C64: ='Stock Price Data'!A57 -> 2017-08-28 | D64: ='Stock Price Data'!B57 -> 71.8191 | I64: 71.8191 | J64: 71.8191 | K64: 71.8191 | O64: 71.8191 | P64: 71.8191
A65: 2017-08-29 | C65: ='Stock Price Data'!A58 -> 2017-08-29 | D65: ='Stock Price Data'!B58 -> 72.0361 | I65: 72.0361 | J65: 72.0361 | K65: 72.0361 | O65: 72.0361 | P65: 72.0361
A66: 2017-08-30 | C66: ='Stock Price Data'!A59 -> 2017-08-30 | D66: ='Stock Price Data'!B59 -> 72.9828 | I66: 72.9828 | J66: 72.9828 | K66: 72.9828 | O66: 72.9828 | P66: 72.9828
A67: 2017-08-31 | C67: ='Stock Price Data'!A60 -> 2017-08-31 | D67: ='Stock Price Data'!B60 -> 73.7322 | I67: 73.7322 | J67: 73.7322 | K67: 73.7322 | O67: 73.7322 | P67: 73.7322
A68: 2017-09-01 | C68: ='Stock Price Data'!A61 -> 2017-09-01 | D68: ='Stock Price Data'!B61 -> 72.9137 | I68: 72.9137 | J68: 72.9137 | K68: 72.9137 | O68: 72.9137 | P68: 72.9137
A69: 2017-09-05 | C69: ='Stock Price Data'!A62 -> 2017-09-05 | D69: ='Stock Price Data'!B62 -> 72.5883 | I69: 72.5883 | J69: 72.5883 | K69: 72.5883 | O69: 72.5883 | P69: 72.5883
A70: 2017-09-06 | C70: ='Stock Price Data'!A63 -> 2017-09-06 | D70: ='Stock Price Data'!B63 -> 72.3812 | I70: 72.3812 | J70: 72.3812 | K70: 72.3812 | O70: 72.3812 | P70: 72.3812
A71: 2017-09-07 | C71: ='Stock Price Data'!A64 -> 2017-09-07 | D71: ='Stock Price Data'!B64 -> 73.3082 | I71: 73.3082 | J71: 73.3082 | K71: 73.3082 | O71: 73.3082 | P71: 73.3082
A72: 2017-09-08 | C72: ='Stock Price Data'!A65 -> 2017-09-08 | D72: ='Stock Price Data'!B65 -> 72.9532 | I72: 72.9532 | J72: 72.9532 | K72: 72.9532 | O72: 72.9532 | P72: 72.9532
A73: =C73 -> 2017-09-11 | C73: ='Stock Price Data'!A66 -> 2017-09-11 | D73: ='Stock Price Data'!B66 -> 73.7224 | I73: =D73 -> 73.7224 | J73: =D73 -> 73.7224 | K73: =D73 -> 73.7224 | O73: =D73 -> 73.7224 | P73: =D73 -> 73.7224
A74: 2017-09-12 | C74: ='Stock Price Data'!A67 -> 2017-09-12 | D74: ='Stock Price Data'!B67 -> 73.6435 | I74: 73.6435 | J74: 73.6435 | K74: 73.6435 | O74: 73.6435 | P74: 73.6435
A75: 2017-09-13 | C75: ='Stock Price Data'!A68 -> 2017-09-13 | D75: ='Stock Price Data'!B68 -> 74.1661 | I75: 74.1661 | J75: 74.1661 | K75: 74.1661 | O75: 74.1661 | P75: 74.1661
A76: 2017-09-14 | C76: ='Stock Price Data'!A69 -> 2017-09-14 | D76: ='Stock Price Data'!B69 -> 73.7322 | I76: 73.7322 | J76: 73.7322 | K76: 73.7322 | O76: 73.7322 | P76: 73.7322
A77: 2017-09-15 | C77: ='Stock Price Data'!A70 -> 2017-09-15 | D77: ='Stock Price Data'!B70 -> 74.2647 | I77: 74.2647 | J77: 74.2647 | K77: 74.2647 | O77: 74.2647 | P77: 74.2647
A78: 2017-09-18 | C78: ='Stock Price Data'!A71 -> 2017-09-18 | D78: ='Stock Price Data'!B71 -> 74.1168 | I78: 74.1168 | J78: 74.1168 | K78: 74.1168 | O78: 74.1168 | P78: 74.1168
A79: 2017-09-19 | C79: ='Stock Price Data'!A72 -> 2017-09-19 | D79: ='Stock Price Data'!B72 -> 74.3929 | I79: 74.3929 | J79: 74.3929 | K79: 74.3929 | O79: 74.3929 | P79: 74.3929
A80: 2017-09-20 | C80: ='Stock Price Data'!A73 -> 2017-09-20 | D80: ='Stock Price Data'!B73 -> 73.8999 | I80: 73.8999 | J80: 73.8999 | K80: 73.8999 | O80: 73.8999 | P80: 73.8999
A81: 2017-09-21 | C81: ='Stock Price Data'!A74 -> 2017-09-21 | D81: ='Stock Price Data'!B74 -> 73.18 | I81: 73.18 | J81: 73.18 | K81: 73.18 | O81: 73.18 | P81: 73.18
A82: 2017-09-22 | C82: ='Stock Price Data'!A75 -> 2017-09-22 | D82: ='Stock Price Data'!B75 -> 73.3772 | I82: 73.3772 | J82: 73.3772 | K82: 73.3772 | O82: 73.3772 | P82: 73.3772
A83: 2017-09-25 | C83: ='Stock Price Data'!A76 -> 2017-09-25 | D83: ='Stock Price Data'!B76 -> 72.2432 | I83: 72.2432 | J83: 72.2432 | K83: 72.2432 | O83: 72.2432 | P83: 72.2432
A84: 2017-09-26 | C84: ='Stock Price Data'!A77 -> 2017-09-26 | D84: ='Stock Price Data'!B77 -> 72.2432 | I84: 72.2432 | J84: 72.2432 | K84: 72.2432 | O84: 72.2432 | P84: 72.2432
A85: 2017-09-27 | C85: ='Stock Price Data'!A78 -> 2017-09-27 | D85: ='Stock Price Data'!B78 -> 72.825 | I85: 72.825 | J85: 72.825 | K85: 72.825 | O85: 72.825 | P85: 72.825
A86: 2017-09-28 | C86: ='Stock Price Data'!A79 -> 2017-09-28 | D86: ='Stock Price Data'!B79 -> 72.8447 | I86: 72.8447 | J86: 72.8447 | K86: 72.8447 | O86: 72.8447 | P86: 72.8447
A87: 2017-09-29 | C87: ='Stock Price Data'!A80 -> 2017-09-29 | D87: ='Stock Price Data'!B80 -> 73.4561 | I87: 73.4561 | J87: 73.4561 | K87: 73.4561 | O87: 73.4561 | P87: 73.4561
A88: 2017-10-02 | C88: ='Stock Price Data'!A81 -> 2017-10-02 | D88: ='Stock Price Data'!B81 -> 73.5744 | I88: 73.5744 | J88: 73.5744 | K88: 73.5744 | O88: 73.5744 | P88: 73.5744
A89: 2017-10-03 | C89: ='Stock Price Data'!A82 -> 2017-10-03 | D89: ='Stock Price Data'!B82 -> 73.2293 | I89: 73.2293 | J89: 73.2293 | K89: 73.2293 | O89: 73.2293 | P89: 73.2293
A90: 2017-10-04 | C90: ='Stock Price Data'!A83 -> 2017-10-04 | D90: ='Stock Price Data'!B83 -> 73.6533 | I90: 73.6533 | J90: 73.6533 | K90: 73.6533 | O90: 73.6533 | P90: 73.6533
A91: 2017-10-05 | C91: ='Stock Price Data'!A84 -> 2017-10-05 | D91: ='Stock Price Data'!B84 -> 74.9156 | I91: 74.9156 | J91: 74.9156 | K91: 74.9156 | O91: 74.9156 | P91: 74.9156
A92: 2017-10-06 | C92: ='Stock Price Data'!A85 -> 2017-10-06 | D92: ='Stock Price Data'!B85 -> 74.9451 | I92: 74.9451 | J92: 74.9451 | K92: 74.9451 | O92: 74.9451 | P92: 74.9451
A93: 2017-10-09 | C93: ='Stock Price Data'!A86 -> 2017-10-09 | D93: ='Stock Price Data'!B86 -> 75.2311 | I93: 75.2311 | J93: 75.2311 | K93: 75.2311 | O93: 75.2311 | P93: 75.2311
A94: 2017-10-10 | C94: ='Stock Price Data'!A87 -> 2017-10-10 | D94: ='Stock Price Data'!B87 -> 75.2311 | I94: 75.2311 | J94: 75.2311 | K94: 75.2311 | O94: 75.2311 | P94: 75.2311
A95: 2017-10-11 | C95: ='Stock Price Data'!A88 -> 2017-10-11 | D95: ='Stock Price Data'!B88 -> 75.3593 | I95: 75.3593 | J95: 75.3593 | K95: 75.3593 | O95: 75.3593 | P95: 75.3593
A96: 2017-10-12 | C96: ='Stock Price Data'!A89 -> 2017-10-12 | D96: ='Stock Price Data'!B89 -> 76.0496 | I96: 76.0496 | J96: 76.0496 | K96: 76.0496 | O96: 76.0496 | P96: 76.0496
A97: 2017-10-13 | C97: ='Stock Price Data'!A90 -> 2017-10-13 | D97: ='Stock Price Data'!B90 -> 76.4145 | I97: 76.4145 | J97: 76.4145 | K97: 76.4145 | O97: 76.4145 | P97: 76.4145
A98: 2017-10-16 | C98: ='Stock Price Data'!A91 -> 2017-10-16 | D98: ='Stock Price Data'!B91 -> 76.5722 | I98: 76.5722 | J98: 76.5722 | K98: 76.5722 | O98: 76.5722 | P98: 76.5722
A99: 2017-10-17 | C99: ='Stock Price Data'!A92 -> 2017-10-17 | D99: ='Stock Price Data'!B92 -> 76.5131 | I99: 76.5131 | J99: 76.5131 | K99: 76.5131 | O99: 76.5131 | P99: 76.5131
A100: 2017-10-18 | C100: ='Stock Price Data'!A93 -> 2017-10-18 | D100: ='Stock Price Data'!B93 -> 76.5328 | I100: 76.5328 | J100: 76.5328 | K100: 76.5328 | O100: 76.5328 | P100: 76.5328
A101: 2017-10-19 | C101: ='Stock Price Data'!A94 -> 2017-10-19 | D101: ='Stock Price Data'!B94 -> 76.8286 | I101: 76.8286 | J101: 76.8286 | K101: 76.8286 | O101: 76.8286 | P101: 76.8286
A102: 2017-10-20 | C102: ='Stock Price Data'!A95 -> 2017-10-20 | D102: ='Stock Price Data'!B95 -> 77.7161 | I102: 77.7161 | J102: 77.7161 | K102: 77.7161 | O102: 77.7161 | P102: 77.7161
A103: 2017-10-23 | C103: ='Stock Price Data'!A96 -> 2017-10-23 | D103: ='Stock Price Data'!B96 -> 77.7359 | I103: 77.7359 | J103: 77.7359 | K103: 77.7359 | O103: 77.7359 | P103: 77.7359
A104: 2017-10-24 | C104: ='Stock Price Data'!A97 -> 2017-10-24 | D104: ='Stock Price Data'!B97 -> 77.7654 | I104: 77.7654 | J104: 77.7654 | K104: 77.7654 | O104: 77.7654 | P104: 77.7654
A105: 2017-10-25 | C105: ='Stock Price Data'!A98 -> 2017-10-25 | D105: ='Stock Price Data'!B98 -> 77.5386 | I105: 77.5386 | J105: 77.5386 | K105: 77.5386 | O105: 77.5386 | P105: 77.5386
A106: 2017-10-26 | C106: ='Stock Price Data'!A99 -> 2017-10-26 | D106: ='Stock Price Data'!B99 -> 77.6668 | I106: 77.6668 | J106: 77.6668 | K106: 77.6668 | O106: 77.6668 | P106: 77.6668
A107: 2017-10-27 | C107: ='Stock Price Data'!A100 -> 2017-10-27 | D107: ='Stock Price Data'!B100 -> 82.6467 | I107: 82.6467 | J107: 82.6467 | K107: 82.6467 | O107: 82.6467 | P107: 82.6467
A108: 2017-10-30 | C108: ='Stock Price Data'!A101 -> 2017-10-30 | D108: ='Stock Price Data'!B101 -> 82.7256 | I108: 82.7256 | J108: 82.7256 | K108: 82.7256 | O108: 82.7256 | P108: 82.7256
A109: 2017-10-31 | C109: ='Stock Price Data'!A102 -> 2017-10-31 | D109: ='Stock Price Data'!B102 -> 82.0255 | I109: 82.0255 | J109: 82.0255 | K109: 82.0255 | O109: 82.0255 | P109: 82.0255
A110: 2017-11-01 | C110: ='Stock Price Data'!A103 -> 2017-11-01 | D110: ='Stock Price Data'!B103 -> 82.0255 | I110: 82.0255 | J110: 82.0255 | K110: 82.0255 | O110: 82.0255 | P110: 82.0255
A111: 2017-11-02 | C111: ='Stock Price Data'!A104 -> 2017-11-02 | D111: ='Stock Price Data'!B104 -> 82.8834 | I111: 82.8834 | J111: 82.8834 | K111: 82.8834 | O111: 82.8834 | P111: 82.8834
A112: 2017-11-03 | C112: ='Stock Price Data'!A105 -> 2017-11-03 | D112: ='Stock Price Data'!B105 -> 82.9722 | I112: 82.9722 | J112: 82.9722 | K112: 82.9722 | O112: 82.9722 | P112: 82.9722
A113: 2017-11-06 | C113: ='Stock Price Data'!A106 -> 2017-11-06 | D113: ='Stock Price Data'!B106 -> 83.2976 | I113: 83.2976 | J113: 83.2976 | K113: 83.2976 | O113: 83.2976 | P113: 83.2976
A114: 2017-11-07 | C114: ='Stock Price Data'!A107 -> 2017-11-07 | D114: ='Stock Price Data'!B107 -> 83.1004 | I114: 83.1004 | J114: 83.1004 | K114: 83.1004 | O114: 83.1004 | P114: 83.1004
A115: 2017-11-08 | C115: ='Stock Price Data'!A108 -> 2017-11-08 | D115: ='Stock Price Data'!B108 -> 83.3863 | I115: 83.3863 | J115: 83.3863 | K115: 83.3863 | O115: 83.3863 | P115: 83.3863
A116: 2017-11-09 | C116: ='Stock Price Data'!A109 -> 2017-11-09 | D116: ='Stock Price Data'!B109 -> 82.9229 | I116: 82.9229 | J116: 82.9229 | K116: 82.9229 | O116: 82.9229 | P116: 82.9229
A117: 2017-11-10 | C117: ='Stock Price Data'!A110 -> 2017-11-10 | D117: ='Stock Price Data'!B110 -> 82.7059 | I117: 82.7059 | J117: 82.7059 | K117: 82.7059 | O117: 82.7059 | P117: 82.7059
A118: 2017-11-13 | C118: ='Stock Price Data'!A111 -> 2017-11-13 | D118: ='Stock Price Data'!B111 -> 82.7651 | I118: 82.7651 | J118: 82.7651 | K118: 82.7651 | O118: 82.7651 | P118: 82.7651
A119: 2017-11-14 | C119: ='Stock Price Data'!A112 -> 2017-11-14 | D119: ='Stock Price Data'!B112 -> 82.8834 | I119: 82.8834 | J119: 82.8834 | K119: 82.8834 | O119: 82.8834 | P119: 82.8834
A120: 2017-11-15 | C120: ='Stock Price Data'!A113 -> 2017-11-15 | D120: ='Stock Price Data'!B113 -> 82.2424 | I120: 82.2424 | J120: 82.2424 | K120: 82.2424 | O120: 82.2424 | P120: 82.2424
A121: 2017-11-16 | C121: ='Stock Price Data'!A114 -> 2017-11-16 | D121: ='Stock Price Data'!B114 -> 82.4605 | I121: 82.4605 | J121: 82.4605 | K121: 82.4605 | O121: 82.4605 | P121: 82.4605
A122: 2017-11-17 | C122: ='Stock Price Data'!A115 -> 2017-11-17 | D122: ='Stock Price Data'!B115 -> 81.6676 | I122: 81.6676 | J122: 81.6676 | K122: 81.6676 | O122: 81.6676 | P122: 81.6676
A123: 2017-11-20 | C123: ='Stock Price Data'!A116 -> 2017-11-20 | D123: ='Stock Price Data'!B116 -> 81.7964 | I123: 81.7964 | J123: 81.7964 | K123: 81.7964 | O123: 81.7964 | P123: 81.7964
A124: 2017-11-21 | C124: ='Stock Price Data'!A117 -> 2017-11-21 | D124: ='Stock Price Data'!B117 -> 82.9759 | I124: 82.9759 | J124: 82.9759 | K124: 82.9759 | O124: 82.9759 | P124: 82.9759
A125: 2017-11-22 | C125: ='Stock Price Data'!A118 -> 2017-11-22 | D125: ='Stock Price Data'!B118 -> 82.3713 | I125: 82.3713 | J125: 82.3713 | K125: 82.3713 | O125: 82.3713 | P125: 82.3713
A126: 2017-11-24 | C126: ='Stock Price Data'!A119 -> 2017-11-24 | D126: ='Stock Price Data'!B119 -> 82.5199 | I126: 82.5199 | J126: 82.5199 | K126: 82.5199 | O126: 82.5199 | P126: 82.5199
A127: 2017-11-27 | C127: ='Stock Price Data'!A120 -> 2017-11-27 | D127: ='Stock Price Data'!B120 -> 83.1245 | I127: 83.1245 | J127: 83.1245 | K127: 83.1245 | O127: 83.1245 | P127: 83.1245
A128: 2017-11-28 | C128: ='Stock Price Data'!A121 -> 2017-11-28 | D128: ='Stock Price Data'!B121 -> 84.1255 | I128: 84.1255 | J128: 84.1255 | K128: 84.1255 | O128: 84.1255 | P128: 84.1255
A129: 2017-11-29 | C129: ='Stock Price Data'!A122 -> 2017-11-29 | D129: ='Stock Price Data'!B122 -> 82.5992 | I129: 82.5992 | J129: 82.5992 | K129: 82.5992 | O129: 82.5992 | P129: 82.5992
A130: 2017-11-30 | C130: ='Stock Price Data'!A123 -> 2017-11-30 | D130: ='Stock Price Data'!B123 -> 83.4219 | I130: 83.4219 | J130: 83.4219 | K130: 83.4219 | O130: 83.4219 | P130: 83.4219
A131: 2017-12-01 | C131: ='Stock Price Data'!A124 -> 2017-12-01 | D131: ='Stock Price Data'!B124 -> 83.5111 | I131: 83.5111 | J131: 83.5111 | K131: 83.5111 | O131: 83.5111 | P131: 83.5111
A132: 2017-12-04 | C132: ='Stock Price Data'!A125 -> 2017-12-04 | D132: ='Stock Price Data'!B125 -> 80.3593 | I132: 80.3593 | J132: 80.3593 | K132: 80.3593 | O132: 80.3593 | P132: 80.3593
A133: 2017-12-05 | C133: ='Stock Price Data'!A126 -> 2017-12-05 | D133: ='Stock Price Data'!B126 -> 80.8648 | I133: 80.8648 | J133: 80.8648 | K133: 80.8648 | O133: 80.8648 | P133: 80.8648
A134: 2017-12-06 | C134: ='Stock Price Data'!A127 -> 2017-12-06 | D134: ='Stock Price Data'!B127 -> 82.0442 | I134: 82.0442 | J134: 82.0442 | K134: 82.0442 | O134: 82.0442 | P134: 82.0442
A135: 2017-12-07 | C135: ='Stock Price Data'!A128 -> 2017-12-07 | D135: ='Stock Price Data'!B128 -> 81.7568 | I135: 81.7568 | J135: 81.7568 | K135: 81.7568 | O135: 81.7568 | P135: 81.7568
A136: 2017-12-08 | C136: ='Stock Price Data'!A129 -> 2017-12-08 | D136: ='Stock Price Data'!B129 -> 83.4119 | I136: 83.4119 | J136: 83.4119 | K136: 83.4119 | O136: 83.4119 | P136: 83.4119
A137: =C137 -> 2017-12-11 | C137: ='Stock Price Data'!A130 -> 2017-12-11 | D137: ='Stock Price Data'!B130 -> 84.4724 | I137: =D137 -> 84.4724 | J137: =D137 -> 84.4724 | K137: =D137 -> 84.4724 | O137: =D137 -> 84.4724 | P137: =D137 -> 84.4724
A138: 2017-12-12 | C138: ='Stock Price Data'!A131 -> 2017-12-12 | D138: ='Stock Price Data'!B131 -> 84.8193 | I138: 84.8193 | J138: 84.8193 | K138: 84.8193 | O138: 84.8193 | P138: 84.8193
A139: 2017-12-13 | C139: ='Stock Price Data'!A132 -> 2017-12-13 | D139: ='Stock Price Data'!B132 -> 84.5914 | I139: 84.5914 | J139: 84.5914 | K139: 84.5914 | O139: 84.5914 | P139: 84.5914
A140: 2017-12-14 | C140: ='Stock Price Data'!A133 -> 2017-12-14 | D140: ='Stock Price Data'!B133 -> 83.9372 | I140: 83.9372 | J140: 83.9372 | K140: 83.9372 | O140: 83.9372 | P140: 83.9372
A141: 2017-12-15 | C141: ='Stock Price Data'!A134 -> 2017-12-15 | D141: ='Stock Price Data'!B134 -> 86.078 | I141: 86.078 | J141: 86.078 | K141: 86.078 | O141: 86.078 | P141: 86.078
A142: 2017-12-18 | C142: ='Stock Price Data'!A135 -> 2017-12-18 | D142: ='Stock Price Data'!B135 -> 85.6122 | I142: 85.6122 | J142: 85.6122 | K142: 85.6122 | O142: 85.6122 | P142: 85.6122
A143: 2017-12-19 | C143: ='Stock Price Data'!A136 -> 2017-12-19 | D143: ='Stock Price Data'!B136 -> 85.0671 | I143: 85.0671 | J143: 85.0671 | K143: 85.0671 | O143: 85.0671 | P143: 85.0671
A144: 2017-12-20 | C144: ='Stock Price Data'!A137 -> 2017-12-20 | D144: ='Stock Price Data'!B137 -> 84.7599 | I144: 84.7599 | J144: 84.7599 | K144: 84.7599 | O144: 84.7599 | P144: 84.7599
A145: 2017-12-21 | C145: ='Stock Price Data'!A138 -> 2017-12-21 | D145: ='Stock Price Data'!B138 -> 84.74 | I145: 84.74 | J145: 84.74 | K145: 84.74 | O145: 84.74 | P145: 84.74
A146: 2017-12-22 | C146: ='Stock Price Data'!A139 -> 2017-12-22 | D146: ='Stock Price Data'!B139 -> 84.7499 | I146: 84.7499 | J146: 84.7499 | K146: 84.7499 | O146: 84.7499 | P146: 84.7499
A147: 2017-12-26 | C147: ='Stock Price Data'!A140 -> 2017-12-26 | D147: ='Stock Price Data'!B140 -> 84.6409 | I147: 84.6409 | J147: 84.6409 | K147: 84.6409 | O147: 84.6409 | P147: 84.6409
A148: 2017-12-27 | C148: ='Stock Price Data'!A141 -> 2017-12-27 | D148: ='Stock Price Data'!B141 -> 84.9482 | I148: 84.9482 | J148: 84.9482 | K148: 84.9482 | O148: 84.9482 | P148: 84.9482
A149: 2017-12-28 | C149: ='Stock Price Data'!A142 -> 2017-12-28 | D149: ='Stock Price Data'!B142 -> 84.9581 | I149: 84.9581 | J149: 84.9581 | K149: 84.9581 | O149: 84.9581 | P149: 84.9581
A150: 2017-12-29 | C150: ='Stock Price Data'!A143 -> 2017-12-29 | D150: ='Stock Price Data'!B143 -> 84.7797 | I150: 84.7797 | J150: 84.7797 | K150: 84.7797 | O150: 84.7797 | P150: 84.7797
A151: 2018-01-02 | C151: ='Stock Price Data'!A144 -> 2018-01-02 | D151: ='Stock Price Data'!B144 -> 85.186 | I151: 85.186 | J151: 85.186 | K151: 85.186 | O151: 85.186 | P151: 85.186
A152: 2018-01-03 | C152: ='Stock Price Data'!A145 -> 2018-01-03 | D152: ='Stock Price Data'!B145 -> 85.5825 | I152: 85.5825 | J152: 85.5825 | K152: 85.5825 | O152: 85.5825 | P152: 85.5825
A153: 2018-01-04 | C153: ='Stock Price Data'!A146 -> 2018-01-04 | D153: ='Stock Price Data'!B146 -> 86.3357 | I153: 86.3357 | J153: 86.3357 | K153: 86.3357 | O153: 86.3357 | P153: 86.3357
A154: 2018-01-05 | C154: ='Stock Price Data'!A147 -> 2018-01-05 | D154: ='Stock Price Data'!B147 -> 87.4061 | I154: 87.4061 | J154: 87.4061 | K154: 87.4061 | O154: 87.4061 | P154: 87.4061
A155: 2018-01-08 | C155: ='Stock Price Data'!A148 -> 2018-01-08 | D155: ='Stock Price Data'!B148 -> 87.4953 | I155: 87.4953 | J155: 87.4953 | K155: 87.4953 | O155: 87.4953 | P155: 87.4953
A156: 2018-01-09 | C156: ='Stock Price Data'!A149 -> 2018-01-09 | D156: ='Stock Price Data'!B149 -> 87.4359 | I156: 87.4359 | J156: 87.4359 | K156: 87.4359 | O156: 87.4359 | P156: 87.4359
A157: 2018-01-10 | C157: ='Stock Price Data'!A150 -> 2018-01-10 | D157: ='Stock Price Data'!B150 -> 87.0394 | I157: 87.0394 | J157: 87.0394 | K157: 87.0394 | O157: 87.0394 | P157: 87.0394
A158: 2018-01-11 | C158: ='Stock Price Data'!A151 -> 2018-01-11 | D158: ='Stock Price Data'!B151 -> 87.2971 | I158: 87.2971 | J158: 87.2971 | K158: 87.2971 | O158: 87.2971 | P158: 87.2971
A159: 2018-01-12 | C159: ='Stock Price Data'!A152 -> 2018-01-12 | D159: ='Stock Price Data'!B152 -> 88.8036 | I159: 88.8036 | J159: 88.8036 | K159: 88.8036 | O159: 88.8036 | P159: 88.8036
A160: 2018-01-16 | C160: ='Stock Price Data'!A153 -> 2018-01-16 | D160: ='Stock Price Data'!B153 -> 87.5647 | I160: 87.5647 | J160: 87.5647 | K160: 87.5647 | O160: 87.5647 | P160: 87.5647
A161: 2018-01-17 | C161: ='Stock Price Data'!A154 -> 2018-01-17 | D161: ='Stock Price Data'!B154 -> 89.3388 | I161: 89.3388 | J161: 89.3388 | K161: 89.3388 | O161: 89.3388 | P161: 89.3388
A162: 2018-01-18 | C162: ='Stock Price Data'!A155 -> 2018-01-18 | D162: ='Stock Price Data'!B155 -> 89.2991 | I162: 89.2991 | J162: 89.2991 | K162: 89.2991 | O162: 89.2991 | P162: 89.2991
A163: 2018-01-19 | C163: ='Stock Price Data'!A156 -> 2018-01-19 | D163: ='Stock Price Data'!B156 -> 89.2 | I163: 89.2 | J163: 89.2 | K163: 89.2 | O163: 89.2 | P163: 89.2
A164: 2018-01-22 | C164: ='Stock Price Data'!A157 -> 2018-01-22 | D164: ='Stock Price Data'!B157 -> 90.7957 | I164: 90.7957 | J164: 90.7957 | K164: 90.7957 | O164: 90.7957 | P164: 90.7957
A165: 2018-01-23 | C165: ='Stock Price Data'!A158 -> 2018-01-23 | D165: ='Stock Price Data'!B158 -> 91.0831 | I165: 91.0831 | J165: 91.0831 | K165: 91.0831 | O165: 91.0831 | P165: 91.0831
A166: 2018-01-24 | C166: ='Stock Price Data'!A159 -> 2018-01-24 | D166: ='Stock Price Data'!B159 -> 91.0039 | I166: 91.0039 | J166: 91.0039 | K166: 91.0039 | O166: 91.0039 | P166: 91.0039
A167: 2018-01-25 | C167: ='Stock Price Data'!A160 -> 2018-01-25 | D167: ='Stock Price Data'!B160 -> 91.5093 | I167: 91.5093 | J167: 91.5093 | K167: 91.5093 | O167: 91.5093 | P167: 91.5093
A168: 2018-01-26 | C168: ='Stock Price Data'!A161 -> 2018-01-26 | D168: ='Stock Price Data'!B161 -> 93.2239 | I168: 93.2239 | J168: 93.2239 | K168: 93.2239 | O168: 93.2239 | P168: 93.2239
A169: 2018-01-29 | C169: ='Stock Price Data'!A162 -> 2018-01-29 | D169: ='Stock Price Data'!B162 -> 93.0852 | I169: 93.0852 | J169: 93.0852 | K169: 93.0852 | O169: 93.0852 | P169: 93.0852
A170: 2018-01-30 | C170: ='Stock Price Data'!A163 -> 2018-01-30 | D170: ='Stock Price Data'!B163 -> 91.9157 | I170: 91.9157 | J170: 91.9157 | K170: 91.9157 | O170: 91.9157 | P170: 91.9157
A171: 2018-01-31 | C171: ='Stock Price Data'!A164 -> 2018-01-31 | D171: ='Stock Price Data'!B164 -> 94.1655 | I171: 94.1655 | J171: 94.1655 | K171: 94.1655 | O171: 94.1655 | P171: 94.1655
A172: 2018-02-01 | C172: ='Stock Price Data'!A165 -> 2018-02-01 | D172: ='Stock Price Data'!B165 -> 93.4222 | I172: 93.4222 | J172: 93.4222 | K172: 93.4222 | O172: 93.4222 | P172: 93.4222
A173: 2018-02-02 | C173: ='Stock Price Data'!A166 -> 2018-02-02 | D173: ='Stock Price Data'!B166 -> 90.9642 | I173: 90.9642 | J173: 90.9642 | K173: 90.9642 | O173: 90.9642 | P173: 90.9642
A174: 2018-02-05 | C174: ='Stock Price Data'!A167 -> 2018-02-05 | D174: ='Stock Price Data'!B167 -> 87.2178 | I174: 87.2178 | J174: 87.2178 | K174: 87.2178 | O174: 87.2178 | P174: 87.2178
A175: 2018-02-06 | C175: ='Stock Price Data'!A168 -> 2018-02-06 | D175: ='Stock Price Data'!B168 -> 90.5182 | I175: 90.5182 | J175: 90.5182 | K175: 90.5182 | O175: 90.5182 | P175: 90.5182
A176: 2018-02-07 | C176: ='Stock Price Data'!A169 -> 2018-02-07 | D176: ='Stock Price Data'!B169 -> 88.8135 | I176: 88.8135 | J176: 88.8135 | K176: 88.8135 | O176: 88.8135 | P176: 88.8135
A177: 2018-02-08 | C177: ='Stock Price Data'!A170 -> 2018-02-08 | D177: ='Stock Price Data'!B170 -> 84.2544 | I177: 84.2544 | J177: 84.2544 | K177: 84.2544 | O177: 84.2544 | P177: 84.2544
A178: 2018-02-09 | C178: ='Stock Price Data'!A171 -> 2018-02-09 | D178: ='Stock Price Data'!B171 -> 87.3962 | I178: 87.3962 | J178: 87.3962 | K178: 87.3962 | O178: 87.3962 | P178: 87.3962
A179: 2018-02-12 | C179: ='Stock Price Data'!A172 -> 2018-02-12 | D179: ='Stock Price Data'!B172 -> 88.3378 | I179: 88.3378 | J179: 88.3378 | K179: 88.3378 | O179: 88.3378 | P179: 88.3378
A180: 2018-02-13 | C180: ='Stock Price Data'!A173 -> 2018-02-13 | D180: ='Stock Price Data'!B173 -> 89.0315 | I180: 89.0315 | J180: 89.0315 | K180: 89.0315 | O180: 89.0315 | P180: 89.0315
A181: 2018-02-14 | C181: ='Stock Price Data'!A174 -> 2018-02-14 | D181: ='Stock Price Data'!B174 -> 90.4191 | I181: 90.4191 | J181: 90.4191 | K181: 90.4191 | O181: 90.4191 | P181: 90.4191
A182: 2018-02-15 | C182: ='Stock Price Data'!A175 -> 2018-02-15 | D182: ='Stock Price Data'!B175 -> 92.2611 | I182: 92.2611 | J182: 92.2611 | K182: 92.2611 | O182: 92.2611 | P182: 92.2611
A183: 2018-02-16 | C183: ='Stock Price Data'!A176 -> 2018-02-16 | D183: ='Stock Price Data'!B176 -> 91.604 | I183: 91.604 | J183: 91.604 | K183: 91.604 | O183: 91.604 | P183: 91.604
A184: 2018-02-20 | C184: ='Stock Price Data'!A177 -> 2018-02-20 | D184: ='Stock Price Data'!B177 -> 92.3209 | I184: 92.3209 | J184: 92.3209 | K184: 92.3209 | O184: 92.3209 | P184: 92.3209
A185: 2018-02-21 | C185: ='Stock Price Data'!A178 -> 2018-02-21 | D185: ='Stock Price Data'!B178 -> 91.0962 | I185: 91.0962 | J185: 91.0962 | K185: 91.0962 | O185: 91.0962 | P185: 91.0962
A186: 2018-02-22 | C186: ='Stock Price Data'!A179 -> 2018-02-22 | D186: ='Stock Price Data'!B179 -> 91.3351 | I186: 91.3351 | J186: 91.3351 | K186: 91.3351 | O186: 91.3351 | P186: 91.3351
A187: 2018-02-23 | C187: ='Stock Price Data'!A180 -> 2018-02-23 | D187: ='Stock Price Data'!B180 -> 93.6551 | I187: 93.6551 | J187: 93.6551 | K187: 93.6551 | O187: 93.6551 | P187: 93.6551
A188: 2018-02-26 | C188: ='Stock Price Data'!A181 -> 2018-02-26 | D188: ='Stock Price Data'!B181 -> 95.0093 | I188: 95.0093 | J188: 95.0093 | K188: 95.0093 | O188: 95.0093 | P188: 95.0093
A189: 2018-02-27 | C189: ='Stock Price Data'!A182 -> 2018-02-27 | D189: ='Stock Price Data'!B182 -> 93.7945 | I189: 93.7945 | J189: 93.7945 | K189: 93.7945 | O189: 93.7945 | P189: 93.7945
A190: 2018-02-28 | C190: ='Stock Price Data'!A183 -> 2018-02-28 | D190: ='Stock Price Data'!B183 -> 93.3664 | I190: 93.3664 | J190: 93.3664 | K190: 93.3664 | O190: 93.3664 | P190: 93.3664
A191: 2018-03-01 | C191: ='Stock Price Data'!A184 -> 2018-03-01 | D191: ='Stock Price Data'!B184 -> 92.4503 | I191: 92.4503 | J191: 92.4503 | K191: 92.4503 | O191: 92.4503 | P191: 92.4503
A192: 2018-03-02 | C192: ='Stock Price Data'!A185 -> 2018-03-02 | D192: ='Stock Price Data'!B185 -> 92.6495 | I192: 92.6495 | J192: 92.6495 | K192: 92.6495 | O192: 92.6495 | P192: 92.6495
A193: 2018-03-05 | C193: ='Stock Price Data'!A186 -> 2018-03-05 | D193: ='Stock Price Data'!B186 -> 93.2369 | I193: 93.2369 | J193: 93.2369 | K193: 93.2369 | O193: 93.2369 | P193: 93.2369
A194: 2018-03-06 | C194: ='Stock Price Data'!A187 -> 2018-03-06 | D194: ='Stock Price Data'!B187 -> 92.9183 | I194: 92.9183 | J194: 92.9183 | K194: 92.9183 | O194: 92.9183 | P194: 92.9183
A195: 2018-03-07 | C195: ='Stock Price Data'!A188 -> 2018-03-07 | D195: ='Stock Price Data'!B188 -> 93.456 | I195: 93.456 | J195: 93.456 | K195: 93.456 | O195: 93.456 | P195: 93.456
A196: 2018-03-08 | C196: ='Stock Price Data'!A189 -> 2018-03-08 | D196: ='Stock Price Data'!B189 -> 94.0235 | I196: 94.0235 | J196: 94.0235 | K196: 94.0235 | O196: 94.0235 | P196: 94.0235
A197: 2018-03-09 | C197: ='Stock Price Data'!A190 -> 2018-03-09 | D197: ='Stock Price Data'!B190 -> 96.1244 | I197: 96.1244 | J197: 96.1244 | K197: 96.1244 | O197: 96.1244 | P197: 96.1244
A198: 2018-03-12 | C198: ='Stock Price Data'!A191 -> 2018-03-12 | D198: ='Stock Price Data'!B191 -> 96.3534 | I198: 96.3534 | J198: 96.3534 | K198: 96.3534 | O198: 96.3534 | P198: 96.3534
A199: 2018-03-13 | C199: ='Stock Price Data'!A192 -> 2018-03-13 | D199: ='Stock Price Data'!B192 -> 94.0036 | I199: 94.0036 | J199: 94.0036 | K199: 94.0036 | O199: 94.0036 | P199: 94.0036
A200: 2018-03-14 | C200: ='Stock Price Data'!A193 -> 2018-03-14 | D200: ='Stock Price Data'!B193 -> 93.446 | I200: 93.446 | J200: 93.446 | K200: 93.446 | O200: 93.446 | P200: 93.446
... 1154 more rows

Sheet Disclaimer
